bitfinex/quotes_ETHUSD_20251224
["timestamp","ask_amount","ask_price","bid_price","bid_amount"]
[1766590788813,0.14152414,2922.2,2921.8,0.002]
[1766590789101,0.09877552,2922.0,2921.5,0.002]
[1766590789476,0.09877552,2922.0,2921.5,0.03622899]
[1766590789693,0.62332414,2922.2,2921.5,3.45911889]
[1766590789900,0.04274862,2922.2,2921.7,0.9366]
[1766590790068,0.04274862,2922.3,2921.8,0.03422547]
[1766590790279,0.04274862,2922.3,2921.8,0.97082547]
[1766590790695,0.04274862,2922.4,2921.8,0.97282547]
[1766590790894,0.09877552,2922.3,2921.8,0.97282547]
[1766590791400,0.09877552,2922.3,2921.8,0.9386]
[1766590791605,0.04274862,2922.2,2921.8,0.002]
[1766590791803,0.09877552,2922.1,2921.5,0.9386]
[1766590792873,0.09877552,2922.1,2921.5,4.36147156]
[1766590793206,0.09877552,2922.1,2921.0,0.9366]
[1766590793207,0.09877552,2921.7,2921.0,0.9366]
[1766590793371,0.04277891,2922.0,2921.2,0.9366]
[1766590793571,0.09877552,2921.8,2921.2,0.9366]
[1766590793799,0.14155736,2921.8,2921.2,0.9366]
[1766590794082,0.851,2922.1,2921.4,0.9366]
[1766590794378,0.851,2922.1,2921.6,0.9366]
[1766590794912,0.851,2922.1,2921.7,0.97082664]
[1766590795077,0.0341946,2922.0,2921.7,0.97082664]
[1766590795805,0.0341946,2922.0,2921.7,0.9366]
[1766590796002,0.81702058,2922.0,2921.3,0.9366]
[1766590796206,0.0341946,2922.0,2921.3,0.9366]
[1766590796624,0.13297012,2922.0,2921.3,0.9366]
[1766590796919,0.09877552,2921.8,2920.9,0.854]
[1766590797204,0.09877552,2921.3,2920.6,0.9386]
[1766590797394,0.09877552,2921.1,2920.6,0.9386]
[1766590797594,0.0341946,2921.0,2920.6,0.9386]
[1766590797796,0.09877552,2920.8,2920.2,0.9366]
[1766590798109,0.0341946,2921.0,2920.3,0.03624305]
[1766590798404,0.0341946,2921.0,2920.3,0.97284305]
[1766590799714,0.09877552,2920.9,2920.3,0.97284305]
[1766590799914,0.0341946,2920.8,2920.3,0.97284305]
[1766590800427,0.09877552,2920.7,2920.3,0.9386]
[1766590800714,0.0341946,2920.8,2919.7,0.854]
[1766590800715,0.13297012,2920.6,2919.8,3.45904545]
[1766590800876,0.852,2921.0,2920.2,3.42433848]
[1766590801079,0.0341946,2920.9,2920.4,0.9366]
[1766590801407,0.09877552,2920.5,2920.0,0.9557]
[1766590801753,0.95077552,2920.8,2920.0,0.98994657]
[1766590801882,0.98497012,2920.9,2920.1,0.9557]
[1766590802077,0.0341946,2920.8,2920.1,0.9557]
[1766590802276,0.0341946,2920.8,2920.3,0.9557]
[1766590802709,0.0341946,2920.9,2920.5,0.9557]
[1766590802921,0.0341946,2921.2,2920.7,0.9557]
[1766590803507,0.852,2921.3,2920.8,0.03423719]
[1766590803719,0.852,2921.3,2920.9,0.9557]
[1766590804036,0.852,2921.3,2920.4,0.88724188]
[1766590804037,0.95077552,2922.0,2921.1,0.9557]
[1766590804205,0.09877552,2921.8,2921.3,0.9557]
[1766590804407,0.0341946,2921.7,2921.3,0.9557]
[1766590804599,0.13297012,2921.7,2921.3,0.9557]
[1766590805516,0.13297012,2921.7,2921.0,0.9557]
[1766590805819,0.13297012,2921.7,2921.2,0.9557]
[1766590806200,3.55563989,2921.7,2921.2,0.9557]
[1766590806434,3.55563989,2921.7,2920.6,0.9557]
[1766590806435,0.09877552,2921.5,2920.6,0.9557]
[1766590806633,0.0341946,2921.4,2920.6,0.9557]
[1766590806835,0.09877552,2921.3,2920.6,0.9557]
[1766590807149,0.09877552,2921.3,2920.7,0.98993836]
[1766590807305,0.13297012,2921.5,2920.8,0.9557]
[1766590807505,3.55591649,2921.5,2920.9,0.98993602]
[1766590807811,0.09877552,2921.1,2920.1,0.9557]
[1766590808002,0.13297012,2921.0,2920.4,0.9557]
[1766590808201,0.13297012,2921.0,2920.5,0.98994071]
[1766590808817,0.13297012,2921.0,2920.5,0.9557]
[1766590809117,0.44079165,2921.4,2920.7,0.9557]
[1766590809118,1.42576177,2921.4,2920.7,0.9557]
[1766590809323,0.09877552,2921.2,2920.2,0.9557]
[1766590809645,0.0341946,2921.1,2920.3,0.98994305]
[1766590810408,3.42319545,2921.3,2920.3,0.98994305]
[1766590810609,0.91266894,2921.2,2920.3,0.98994305]
[1766590811536,0.77969882,2921.2,2920.5,0.9557]
[1766590811834,0.95077552,2921.8,2920.7,0.9557]
[1766590812010,4.37334097,2921.8,2920.9,0.9557]
[1766590812216,4.37334097,2921.8,2921.1,0.9557]
[1766590812414,0.7795808,2921.7,2921.1,0.9557]
[1766590812632,0.0341946,2921.6,2921.2,0.9899325]
[1766590812940,0.0341946,2921.6,2921.2,0.9557]
[1766590813434,4.37334097,2921.8,2921.4,0.9557]
[1766590813435,0.852,2921.8,2921.4,0.9557]
[1766590813803,0.09877552,2922.0,2921.4,0.9557]
[1766590814035,0.0341946,2921.9,2921.4,0.9557]
[1766590814213,0.001,2921.7,2921.4,0.9557]
[1766590814829,0.001,2921.7,2921.4,0.98993016]
[1766590815031,0.001,2921.7,2921.4,0.9557]
[1766590815933,0.001,2921.7,2921.1,0.9557]
[1766590816149,0.001,2921.7,2921.2,0.0342325]
[1766590816150,0.38096235,2921.7,2921.2,0.0342325]
[1766590816446,0.0351946,2921.7,2921.2,0.0342325]
[1766590816611,0.0351946,2921.7,2921.2,0.9899325]
[1766590817027,0.001,2921.7,2921.3,0.9557]
[1766590817204,0.001,2921.7,2921.5,0.9557]
[1766590818027,0.001,2921.7,2921.2,0.9899325]
[1766590818574,0.001,2921.7,2921.3,3.42310392]
[1766590818730,0.0341946,2921.9,2921.4,0.98993016]
[1766590820962,3.45665369,2921.9,2921.4,0.98993016]
[1766590821362,3.45665369,2921.9,2921.4,0.9557]
[1766590821565,0.09877552,2922.4,2921.5,0.9557]
[1766590821734,0.09877552,2922.4,2921.6,0.9557]
[1766590821935,3.5206238,2922.4,2921.6,0.9557]
[1766590822561,3.5206238,2922.4,2921.7,0.03422664]
[1766590822764,0.0341946,2922.3,2921.8,0.9557]
[1766590822969,0.69766667,2922.2,2921.8,0.9557]
[1766590823171,0.0341946,2922.1,2921.8,0.9557]
[1766590823371,0.001,2921.9,2921.8,0.9557]
[1766590825373,0.95077552,2922.4,2921.8,0.9557]
[1766590825374,0.852,2922.4,2921.8,0.9557]
[1766590825535,4.70131844,2922.4,2921.4,0.9557]
[1766590825740,0.09877552,2922.3,2921.4,0.9557]
[1766590825940,0.0341946,2922.2,2921.6,0.9557]
[1766590826270,0.0341946,2922.3,2921.8,0.9557]
[1766590826567,3.45617648,2922.3,2921.8,0.9557]
[1766590826777,0.47356432,2922.2,2921.8,0.9557]
[1766590827136,0.47356432,2922.2,2921.5,0.98992899]
[1766590827338,0.0341946,2922.1,2921.5,0.9557]
[1766590827534,0.47356432,2922.2,2921.5,0.9557]
[1766590827739,0.0341946,2922.1,2921.5,0.9557]
[1766590828048,0.77924442,2922.1,2921.5,0.9557]
[1766590828569,0.74504982,2922.1,2921.6,0.98992782]
[1766590828768,3.5207574,2922.3,2921.6,0.98992782]
[1766590829373,0.0341946,2922.2,2921.6,0.98992782]
[1766590830885,3.45628974,2922.2,2921.6,0.98992782]
[1766590831074,0.0341946,2922.2,2921.6,0.98992782]
[1766590831874,0.852,2922.4,2921.6,0.98992782]
[1766590832075,0.001,2922.9,2921.6,13.93922115]
[1766590832400,0.001,2922.1,2921.8,0.9769]
[1766590832701,3.55440196,2922.8,2921.9,3.45664388]
[1766590832852,6.9758338,2922.8,2922.0,0.9769]
[1766590833056,0.09877552,2922.6,2922.0,0.9769]
[1766590833385,0.0341946,2922.5,2921.6,0.9769]
[1766590833572,0.0341946,2922.6,2921.8,0.9769]
[1766590833775,0.13297012,2922.6,2921.9,1.0111243]
[1766590834290,0.09877552,2922.4,2921.9,1.0111243]
[1766590834458,0.0341946,2922.3,2921.4,0.9769]
[1766590834784,0.0341946,2922.3,2921.6,0.9769]
[1766590834991,3.45620519,2922.3,2921.6,0.9769]
[1766590835588,0.0341946,2922.3,2921.6,0.9769]
[1766590836567,0.0341946,2922.3,2921.7,0.9769]
[1766590836803,3.4217527,2922.5,2921.7,0.9769]
[1766590836804,0.0341946,2922.4,2921.7,1.01112664]
[1766590836983,3.42196215,2922.3,2921.7,0.9769]
[1766590837176,0.0341946,2922.2,2921.7,0.9769]
[1766590837493,0.0341946,2922.2,2921.5,0.9795]
[1766590838076,0.13297012,2922.2,2921.5,0.9795]
[1766590838475,0.09877552,2922.0,2921.5,0.9795]
[1766590838675,0.98497012,2921.9,2921.1,0.03423367]
[1766590838872,0.98497012,2921.9,2921.1,3.45754607]
[1766590839080,0.98497012,2922.2,2921.2,0.9795]
[1766590839395,3.4222615,2922.1,2921.4,0.9795]
[1766590839602,0.0341946,2922.0,2921.5,0.03422899]
[1766590840196,0.0341946,2922.0,2921.5,1.01372899]
[1766590840497,3.5206838,2922.4,2921.5,1.01372899]
[1766590840703,0.47146298,2922.3,2921.5,1.01372899]
[1766590841291,3.42207925,2922.2,2921.5,1.01372899]
[1766590841488,0.0341946,2922.1,2921.5,1.01372899]
[1766590841798,0.0351946,2922.3,2921.6,0.9795]
[1766590842000,3.45715729,2922.3,2921.8,0.9795]
[1766590842193,0.0351946,2922.3,2921.8,0.9795]
[1766590842703,0.0351946,2922.3,2921.5,3.45712296]
[1766590842704,0.001,2922.3,2922.0,0.9795]
[1766590843740,0.001,2922.3,2921.7,0.9795]
[1766590844027,0.57475219,2922.3,2921.4,0.9815]
[1766590844187,0.0341946,2922.2,2921.4,0.9815]
[1766590844382,0.0341946,2922.2,2921.5,0.9795]
[1766590845628,3.42219636,2922.1,2921.5,0.9795]
[1766590845950,0.09877552,2921.9,2921.2,0.9795]
[1766590846235,0.09877552,2921.7,2921.2,0.9795]
[1766590846528,0.09877552,2921.7,2920.7,4.27673635]
[1766590846529,0.0341946,2921.8,2921.4,0.9795]
[1766590846703,0.852,2922.2,2921.6,0.9795]
[1766590846896,0.0341946,2922.1,2921.6,0.9795]
[1766590847100,0.9159732,2922.1,2921.6,0.9795]
[1766590848031,0.0341946,2922.1,2921.7,0.03422664]
[1766590848238,3.5551787,2922.1,2921.6,0.9795]
[1766590849739,0.13297012,2922.1,2921.6,0.9795]
[1766590851312,0.0341946,2922.1,2921.6,0.9795]
[1766590851511,0.852,2922.2,2921.8,0.9795]
[1766590851910,0.0341946,2922.1,2921.8,0.9795]
[1766590853220,3.45639287,2922.1,2921.8,0.9795]
[1766590853430,3.89720971,2922.1,2921.8,0.9795]
[1766590854141,3.99598523,2922.1,2921.5,0.9815]
[1766590854316,3.99598523,2922.1,2921.6,0.03422782]
[1766590854509,3.99598523,2922.1,2921.5,0.9815]
[1766590855943,0.47501144,2922.1,2921.6,1.01372782]
[1766590856117,4.27413546,2922.2,2921.5,0.002]
[1766590856118,0.852,2922.2,2921.8,0.9795]
[1766590856444,0.852,2922.2,2922.0,0.9795]
[1766590857041,0.0351946,2922.3,2922.0,0.9795]
[1766590857349,0.0351946,2922.3,2922.1,1.01372196]
[1766590857350,0.001,2922.3,2922.1,1.01372196]
[1766590857507,0.853,2922.7,2922.1,1.01372196]
[1766590857714,0.001,2923.1,2922.1,0.88822196]
[1766590858038,0.001,2923.1,2922.4,0.9795]
[1766590858263,0.001,2923.1,2922.6,0.9795]
[1766590858450,0.001,2923.1,2922.8,0.9795]
[1766590859197,0.001,2923.3,2923.0,0.9795]
[1766590859346,0.001,2923.5,2923.1,1.01371025]
[1766590859748,3.42156214,2923.5,2923.1,1.01371025]
[1766590859942,0.0341946,2923.4,2923.1,0.9795]
[1766590860643,3.80047803,2923.4,2922.5,0.78234243]
[1766590860850,7.31995971,2923.4,2922.6,0.9795]
[1766590861081,0.09877552,2923.2,2922.6,0.9795]
[1766590861385,0.0341946,2923.1,2922.6,0.9795]
[1766590861689,0.09877552,2922.8,2921.7,0.9984]
[1766590861892,0.09877552,2922.8,2921.6,6.84556406]
[1766590861893,0.0341946,2922.7,2921.9,0.9984]
[1766590862093,3.4556903,2922.7,2921.9,0.9984]
[1766590862391,0.0341946,2922.7,2922.0,1.03262313]
[1766590862694,0.0341946,2922.9,2922.0,1.03262313]
[1766590862892,0.0341946,2922.9,2922.2,0.9984]
[1766590863107,0.0341946,2923.0,2922.4,0.9984]
[1766590863293,0.0341946,2923.0,2922.6,0.9984]
[1766590863489,3.51965796,2923.3,2922.8,0.9984]
[1766590863691,0.0341946,2923.2,2922.8,0.9984]
[1766590864271,0.001,2923.5,2923.0,0.9984]
[1766590864499,3.42156858,2923.5,2923.0,0.9984]
[1766590864699,0.0341946,2923.4,2923.0,0.9984]
[1766590865620,0.72181713,2923.4,2922.7,0.9984]
[1766590865770,0.72181713,2923.4,2921.9,0.9984]
[1766590865771,0.09877552,2923.3,2921.9,0.9984]
[1766590865976,0.0341946,2923.2,2922.2,3.42207925]
[1766590866300,3.45512716,2923.2,2922.4,0.9984]
[1766590866503,3.45512716,2923.2,2922.6,0.9984]
[1766590867580,0.68762253,2923.4,2922.8,0.9984]
[1766590867788,3.52035391,2923.5,2923.0,0.9984]
[1766590867994,0.001,2923.5,2923.0,0.9984]
[1766590868312,0.001,2923.5,2923.2,0.9984]
[1766590868607,0.001,2923.5,2923.3,1.03260791]
[1766590869011,0.001,2923.7,2923.3,1.03260791]
[1766590869197,0.001,2923.7,2923.3,0.9984]
[1766590869422,0.001,2923.7,2923.5,0.9984]
[1766590870330,0.001,2923.7,2923.6,0.0342044]
[1766590871208,0.001,2924.1,2923.6,1.0326044]
[1766590871420,3.45486822,2924.3,2922.2,3.62202721]
[1766590871719,0.09877552,2923.8,2923.0,0.9984]
[1766590871898,0.0341946,2923.7,2923.0,1.8524]
[1766590872097,0.0341946,2923.7,2923.1,0.9984]
[1766590872396,3.45453618,2923.7,2923.1,0.9984]
[1766590872629,0.0341946,2923.7,2923.1,0.9984]
[1766590873193,3.45453756,2923.7,2923.1,0.9984]
[1766590873393,3.45453756,2923.7,2923.2,0.03420908]
[1766590873394,0.0341946,2923.7,2923.2,0.03420908]
[1766590873700,0.0351946,2924.3,2923.3,0.9984]
[1766590873917,0.001,2924.3,2923.5,0.9984]
[1766590874122,0.001,2924.3,2923.7,0.9984]
[1766590874296,0.001,2924.3,2923.9,0.9984]
[1766590874497,0.001,2924.3,2924.0,1.03259972]
[1766590875801,0.001,2924.3,2924.0,4.45256129]
[1766590876017,0.001,2924.7,2924.1,0.9984]
[1766590876224,0.001,2924.7,2924.3,0.9984]
[1766590876418,0.001,2924.7,2924.4,1.03259504]
[1766590876639,0.001,2925.0,2924.5,0.9984]
[1766590876925,3.41968654,2925.1,2924.5,0.854]
[1766590877131,3.79604979,2925.1,2924.5,0.88819387]
[1766590877332,3.79604979,2925.1,2924.5,0.03419387]
[1766590877537,3.79604979,2925.1,2924.4,0.9984]
[1766590877747,3.79604979,2925.1,2924.6,0.9984]
[1766590877748,0.37736325,2925.1,2924.6,0.9984]
[1766590877948,0.001,2925.1,2924.7,1.03259154]
[1766590878253,3.41968946,2925.1,2924.7,1.03259154]
[1766590878551,0.001,2925.1,2924.7,0.9984]
[1766590879433,3.45376928,2925.2,2924.8,1.03259037]
[1766590879637,0.001,2925.2,2924.8,1.03259037]
[1766590880246,3.41964044,2925.2,2924.8,0.9984]
[1766590880425,3.76170448,2925.2,2924.8,0.9984]
[1766590881365,7.18021049,2925.2,2924.8,0.9984]
[1766590881521,3.76163371,2925.2,2924.8,0.9984]
[1766590881847,7.18021049,2925.2,2924.3,0.9984]
[1766590882018,0.0341946,2925.1,2924.3,0.9984]
[1766590882219,3.76163371,2925.2,2924.3,0.9984]
[1766590882446,0.71811099,2925.1,2924.5,0.9984]
[1766590882953,0.37725864,2925.2,2924.6,0.03419271]
[1766590883172,0.001,2925.3,2924.7,0.9984]
[1766590883323,0.001,2925.3,2924.9,0.9984]
[1766590883518,0.001,2925.3,2925.0,0.03418803]
[1766590883744,0.001,2925.3,2924.9,0.9984]
[1766590884134,0.001,2925.3,2925.0,0.03418803]
[1766590884659,0.001,2925.3,2925.0,1.03258803]
[1766590886562,0.001,2925.3,2925.0,0.03418803]
[1766590886938,0.001,2925.3,2924.7,0.9984]
[1766590887258,0.001,2925.3,2924.8,0.9984]
[1766590888049,0.001,2925.3,2924.9,0.0341892]
[1766590888253,4.26990318,2925.8,2924.6,4.27325689]
[1766590888254,0.001,2926.1,2925.0,0.9984]
[1766590888466,3.41856849,2926.1,2925.1,1.03258686]
[1766590888649,3.41856849,2926.1,2925.3,0.9984]
[1766590889163,3.41856849,2926.1,2925.4,0.03418335]
[1766590889351,6.83613698,2926.1,2925.4,1.03258335]
[1766590889540,0.001,2926.1,2925.1,0.854]
[1766590889745,0.09877552,2926.0,2925.1,0.854]
[1766590890168,0.09877552,2926.0,2925.1,1.8524]
[1766590890335,0.09877552,2926.0,2925.1,0.9984]
[1766590890872,0.002,2925.8,2925.1,0.9984]
[1766590891448,0.002,2925.8,2925.2,0.03418569]
[1766590891860,0.002,2925.8,2925.2,1.01308569]
[1766590892376,0.35385273,2925.8,2925.2,1.01308569]
[1766590894072,3.41798543,2925.7,2925.2,1.01308569]
[1766590894275,3.77177012,2925.8,2925.2,1.01308569]
[1766590894565,0.35385273,2925.8,2925.2,1.01308569]
[1766590894767,0.002,2925.8,2925.3,0.9789]
[1766590894974,0.002,2925.8,2925.2,0.03418569]
[1766590894975,0.002,2925.8,2925.4,1.01308335]
[1766590895142,3.41989048,2925.8,2925.4,1.01308335]
[1766590895342,0.4707,2925.7,2924.1,3.287698]
[1766590895698,0.56947552,2925.4,2924.3,0.9789]
[1766590895976,0.56947552,2925.0,2924.0,0.854]
[1766590896274,6.83807438,2924.8,2924.0,0.9789]
[1766590896569,0.60365887,2924.7,2923.3,0.9789]
[1766590896758,0.60365887,2924.7,2923.5,0.9303]
[1766590896759,0.09877552,2924.5,2923.5,0.9303]
[1766590896961,0.03418335,2924.4,2923.5,0.9303]
[1766590897471,0.03418335,2924.4,2923.6,0.9303]
[1766590897676,0.03418335,2924.4,2923.6,0.9645044]
[1766590897877,0.03418335,2924.5,2923.7,0.9303]
[1766590898178,3.45366285,2924.5,2923.8,0.96450206]
[1766590898373,3.55243837,2924.5,2923.8,0.96450206]
[1766590898942,0.4697,2924.4,2923.3,0.9303]
[1766590899173,0.4697,2924.4,2923.2,4.46253968]
[1766590899174,0.03418335,2924.3,2923.4,4.92438401]
[1766590899339,0.03418335,2924.3,2923.4,1.46958397]
[1766590899560,0.13295887,2924.3,2923.4,0.9303]
[1766590900263,3.51851425,2924.2,2923.4,0.96450674]
[1766590900488,0.03418335,2924.1,2923.4,0.96450674]
[1766590901065,0.03418335,2924.1,2923.4,4.38512958]
[1766590901265,0.03418335,2924.2,2923.4,4.38512958]
[1766590901467,0.03418335,2924.2,2923.4,4.33958196]
[1766590901693,4.31046525,2924.5,2923.5,0.9303]
[1766590901893,7.72989827,2924.5,2923.6,0.9645044]
[1766590902555,4.31047809,2924.5,2923.6,3.45463195]
[1766590902761,4.31047809,2924.5,2923.8,0.9303]
[1766590902762,3.41944586,2924.5,2923.8,0.9303]
[1766590902977,3.41944586,2924.5,2923.9,0.03420089]
[1766590903466,0.03418335,2924.4,2923.9,0.03420089]
[1766590903656,3.41944586,2924.5,2923.9,0.03420089]
[1766590904156,0.03418335,2924.4,2923.9,0.03420089]
[1766590905298,3.45371128,2924.4,2923.9,0.03420089]
[1766590905589,3.45371128,2924.4,2923.9,0.03520089]
[1766590906193,0.03418335,2924.4,2923.9,0.03520089]
[1766590907294,0.03418335,2924.5,2923.9,0.03520089]
[1766590908770,3.41950485,2924.4,2923.9,0.03520089]
[1766590908962,0.4345,2924.1,2923.1,0.9313]
[1766590909163,0.47724965,2924.0,2923.2,3.4380195]
[1766590909398,0.47724965,2924.0,2923.3,3.42078442]
[1766590909587,0.47724965,2924.0,2923.4,0.01712677]
[1766590909963,0.04274527,2924.3,2923.5,0.9303]
[1766590910180,0.04274527,2924.3,2923.6,0.01711975]
[1766590910181,0.853,2924.2,2923.6,0.01711975]
[1766590910369,0.04274819,2924.1,2923.5,0.9303]
[1766590910591,1.32856965,2924.2,2923.6,0.01712209]
[1766590911098,0.04274819,2924.1,2923.6,0.01712209]
[1766590912598,0.46014819,2924.1,2923.5,0.001]
[1766590912966,0.55892371,2924.1,2923.5,0.001]
[1766590913168,0.55892371,2924.1,2923.2,3.42080433]
[1766590913169,0.4164,2924.0,2923.1,4.35228498]
[1766590913366,4.10203119,2924.1,2923.1,0.001]
[1766590913367,0.4164,2923.8,2923.1,0.001]
[1766590913579,0.04275404,2923.7,2923.1,0.001]
[1766590914388,0.45915404,2923.7,2923.1,0.001]
[1766590914599,0.04275404,2923.7,2923.2,0.9303]
[1766590914783,0.04274819,2924.1,2923.2,0.9303]
[1766590915304,3.46265133,2924.1,2923.2,4.35114877]
[1766590915500,3.46265133,2924.1,2923.2,0.9303]
[1766590915806,0.04274819,2924.1,2923.3,0.9303]
[1766590916602,0.85684637,2924.4,2923.3,0.9303]
[1766590916603,0.4164,2924.4,2923.3,0.9303]
[1766590916908,4.27219339,2924.7,2923.3,0.9303]
[1766590917103,0.04274088,2924.6,2923.3,0.9303]
[1766590917302,0.04274088,2924.6,2923.7,0.9303]
[1766590917303,3.46205806,2924.6,2923.7,0.9303]
[1766590919002,7.29777524,2924.6,2923.7,0.9303]
[1766590919301,3.41950485,2924.4,2923.5,4.35080719]
[1766590919504,0.04274527,2924.3,2923.5,4.35080719]
[1766590919696,0.04274527,2924.3,2923.5,0.9303]
[1766590920406,0.04274527,2924.3,2923.6,0.9303]
[1766590920603,1.41092079,2924.3,2923.5,0.99154137]
[1766590920806,1.41092079,2924.3,2923.3,3.42069817]
[1766590920807,1.31214527,2924.3,2923.4,3.4206647]
[1766590921009,1.31214527,2924.3,2923.4,4.3509647]
[1766590921313,1.999763,2924.3,2923.4,4.87109671]
[1766590921481,3.41973873,2924.2,2923.4,1.45043201]
[1766590921676,3.41973873,2924.2,2923.1,0.9867]
[1766590921677,0.45914819,2924.1,2923.1,0.9867]
[1766590921888,0.09877552,2924.0,2923.1,4.40767046]
[1766590922181,0.04275112,2923.9,2923.1,4.40767046]
[1766590922380,0.51517552,2924.0,2923.2,3.42089621]
[1766590922726,1.54061773,2924.3,2923.5,0.9877]
[1766590923008,4.15007134,2924.3,2923.5,0.9877]
[1766590924186,7.56977968,2924.3,2923.5,0.9877]
[1766590924386,0.89379552,2924.2,2923.5,0.9877]
[1766590924593,0.89379552,2924.2,2923.5,4.40824708]
[1766590924795,0.04274527,2924.3,2923.5,3.42254708]
[1766590925110,0.04274527,2924.3,2923.6,0.9857]
[1766590925307,0.853,2924.4,2923.6,0.9857]
[1766590926506,3.46208149,2924.6,2923.8,0.9857]
[1766590926507,3.46201777,2924.6,2923.8,0.9857]
[1766590926803,4.23542468,2924.6,2923.8,0.9857]
[1766590927009,3.46201777,2924.6,2923.8,0.9857]
[1766590928410,0.10077552,2925.8,2923.9,0.9857]
[1766590928411,0.10077552,2925.2,2923.9,0.9857]
[1766590928614,0.002,2925.2,2923.9,0.9857]
[1766590928817,0.002,2925.2,2924.1,0.9857]
[1766590928996,0.002,2925.2,2924.3,0.9857]
[1766590930293,0.002,2925.2,2924.5,0.9857]
[1766590930497,0.002,2925.2,2924.4,6.8390097]
[1766590930498,0.002,2925.4,2924.7,0.9857]
[1766590930696,0.002,2925.4,2924.6,0.854]
[1766590930697,0.002,2925.4,2924.9,0.9857]
[1766590930895,0.001,2925.6,2924.9,0.9857]
[1766590932326,0.001,2925.6,2924.9,3.41888132]
[1766590932527,0.001,2925.6,2925.0,0.9857]
[1766590933942,0.04272481,2925.7,2924.9,4.40461146]
[1766590934155,0.09977552,2926.1,2924.9,4.40461146]
[1766590934156,0.001,2926.1,2925.1,0.9857]
[1766590934316,6.83469054,2926.3,2925.3,0.9857]
[1766590934632,0.002,2926.6,2925.5,0.9857]
[1766590934831,6.8359238,2926.6,2925.7,0.9857]
[1766590935035,6.8359238,2926.6,2925.6,0.22156936]
[1766590935036,6.8359238,2926.6,2925.8,1.01987868]
[1766590935195,7.3467238,2926.6,2925.8,1.01987868]
[1766590935397,0.73467238,2926.5,2925.8,1.01987868]
[1766590936426,0.002,2926.6,2925.9,0.9857]
[1766590936614,0.002,2926.6,2926.0,1.01987634]
[1766590937148,0.5128,2926.6,2925.6,0.9857]
[1766590937438,0.09877552,2926.3,2925.3,0.9857]
[1766590937734,0.001,2925.6,2925.4,0.03418335]
[1766590939607,0.001,2925.6,2924.2,4.4053711]
[1766590939608,0.09877552,2925.3,2924.2,4.4053711]
[1766590939799,0.95904278,2925.2,2924.2,1.44463411]
[1766590940221,0.95904278,2925.2,2924.4,0.9857]
[1766590940418,0.95077552,2925.3,2924.5,1.01989387]
[1766590940617,4.27113477,2925.6,2924.6,0.9857]
[1766590940811,0.03424278,2925.5,2924.7,1.01989154]
[1766590941020,0.43053775,2925.4,2924.7,1.01989154]
[1766590941333,0.853,2925.6,2924.7,1.01989154]
[1766590941710,0.001,2925.6,2924.9,0.9857]
[1766590941912,0.001,2925.6,2925.0,1.01988803]
[1766590943097,0.852,2926.0,2925.1,0.9857]
[1766590943300,0.03424278,2925.9,2925.3,0.9857]
[1766590943534,0.03424278,2925.9,2925.4,0.03418335]
[1766590943733,0.03424278,2925.9,2925.1,0.03418686]
[1766590944522,0.03424278,2925.9,2925.0,0.03418803]
[1766590944725,0.09877552,2925.8,2925.0,0.03418803]
[1766590945033,0.03424278,2925.7,2925.0,0.03418803]
[1766590945432,0.03424278,2925.7,2925.0,1.01988803]
[1766590945601,3.41787127,2925.8,2925.0,5.30986562]
[1766590945802,3.4198089,2925.9,2925.0,5.30986562]
[1766590946223,0.03424278,2925.8,2925.0,5.30986562]
[1766590947015,0.03424278,2925.8,2925.0,1.89106845]
[1766590947234,0.03424278,2925.8,2925.0,1.01988803]
[1766590947235,0.90898639,2925.8,2925.0,1.01988803]
[1766590947606,4.3268792,2925.8,2925.0,1.01988803]
[1766590948036,0.90898639,2925.8,2925.0,4.43864388]
[1766590950539,4.32691658,2925.8,2925.0,4.43868422]
[1766590951236,0.90898639,2925.8,2925.0,4.43868422]
[1766590951536,10.38877552,2926.7,2925.1,0.9312]
[1766590951537,0.9473,2926.4,2925.1,0.9312]
[1766590951844,3.41904811,2926.6,2925.0,11.16175586]
[1766590951845,0.854,2926.6,2925.3,0.9312]
[1766590952045,0.854,2926.6,2925.7,0.9312]
[1766590952250,0.854,2926.6,2925.8,0.9312]
[1766590952421,0.854,2926.6,2925.8,0.96537868]
[1766590952622,0.002,2926.6,2925.8,0.96537868]
[1766590954754,0.002,2926.6,2925.9,3.4177518]
[1766590955050,0.002,2926.6,2926.1,0.9312]
[1766590955250,0.002,2926.6,2926.2,0.03417401]
[1766590956959,0.002,2926.6,2926.2,3.45157201]
[1766590957161,0.002,2926.6,2926.2,0.96837401]
[1766590958364,0.002,2926.6,2926.2,4.38576282]
[1766590958554,0.002,2926.6,2926.3,0.43857628]
[1766590958862,0.002,2926.6,2926.4,0.03417167]
[1766590959065,0.002,2926.6,2926.3,3.45136562]
[1766590959270,0.002,2926.6,2926.3,0.03417284]
[1766590959436,0.001,2926.8,2926.4,4.35134768]
[1766590959635,0.002,2927.0,2926.5,0.96837051]
[1766590960635,3.41846777,2927.0,2926.5,0.9342]
[1766590960838,0.002,2927.0,2926.5,0.9342]
[1766590961560,0.002,2927.0,2926.2,0.9342]
[1766590961882,0.002,2927.0,2926.2,4.91840249]
[1766590962635,0.9539,2927.0,2926.3,0.03417284]
[1766590962848,0.9519,2926.8,2925.9,0.9342]
[1766590963074,0.9519,2926.6,2925.9,0.9342]
[1766590963308,0.98607284,2926.5,2925.6,0.9342]
[1766590963434,0.98607284,2926.5,2925.6,0.96838102]
[1766590964162,0.9519,2926.3,2925.4,3.88]
[1766590964484,0.03417284,2926.2,2925.5,0.03418219]
[1766590964688,0.98607284,2926.2,2925.5,3.45238894]
[1766590964899,0.03417284,2926.2,2925.7,3.41792706]
[1766590965191,0.03417284,2926.3,2925.8,0.96837868]
[1766590965508,0.03417284,2926.4,2925.8,0.96837868]
[1766590965656,0.18590728,2926.6,2925.9,0.9342]
[1766590965657,3.63704503,2926.6,2925.9,0.9342]
[1766590965850,3.45313775,2926.6,2926.0,0.96837634]
[1766590966295,0.03617284,2926.6,2926.0,0.96837634]
[1766590966791,3.45311997,2926.6,2926.0,0.96837634]
[1766590966989,0.03617284,2926.6,2926.0,0.96837634]
[1766590967199,0.34530529,2926.5,2926.0,0.03417634]
[1766590967501,0.34530529,2926.5,2926.1,0.03417518]